[Event "ESP-chT 2nd Division 2019"]
[Site "Linares"]
[Date "2019.08.23"]
[Round "7.21"]
[White "Montoliu Cervero, Francisco"]
[Black "Cruz Lledo, Pablo"]
[Result "1/2-1/2"]
[ECO "B15"]
[WhiteElo "2393"]
[BlackElo "2445"]
[Annotator "ChessBase"]
[PlyCount "149"]
[EventDate "2019.08.19"]
[EventType "team-tourn"]
[EventCountry "ESP"]
[SourceTitle "playchess.com"]
[Source "ChessBase"]
[SourceQuality "1"]
[TimeControl "5400+30"]

1. e4 {[%emt 0:02:09]} c6 {[%emt 0:01:01]} 2. d4 {[%emt 0:00:17]} d5 {[%emt 0:00:04]} 3. Nc3 g6 {[%emt 0:00:32]} 4. h3 {[%emt 0:03:48]} Bg7 {[%emt 0:00:09]} 5. Nf3 {[%emt 0:05:16]} dxe4 {[%emt 0:00:05]} 6. Nxe4 {[%emt 0:00:08]} Nf6 {[%emt 0:00:03]} 7. Nxf6+ {[%emt 0:03:16]} exf6 {[%emt 0:00:48]} 8. Bc4 {[%emt 0:02:33]} O-O {[%emt 0:00:05]} 9. O-O {[%emt 0:00:19]} a5 {[%emt 0:00:04]} 10. a4 {[%emt 0:04:28]} Na6 {[%emt 0:00:12]} 11. Bf4 {[%emt 0:02:27]} Nb4 {[%emt 0:00:09]} 12. c3 {[%emt 0:02:23]} Nd5 {[%emt 0:00:05]} 13. Bh2 {[%emt 0:01:36]} Be6 {[%emt 0:00:04]} 14. Qb3 {[%emt 0:02:30]} Qd7 {[%emt 0:00:43]} 15. Rfe1 {[%emt 0:04:08]} Rfe8 {[%emt 0:00:51]} 16. Nd2 {[%emt 0:01:52]} f5 {[%emt 0:00:10]} 17. Nf3 {[%emt 0:03:14]} f6 {[%emt 0:00:14]} 18. Re2 {[%emt 0:03:17]} Bf7 {[%emt 0:00:16]} 19. Rae1 {[%emt 0:01:23]} Rxe2 {[%emt 0:00:07]} 20. Rxe2 {[%emt 0:00:02]} g5 {[%emt 0:01:35]} 21. Nd2 {[%emt 0:04:24]} h5 {[%emt 0:06:14]} 22. Qc2 {[%emt 0:05:19]} f4 {[%emt 0:10:57]} 23. Bd3 {[%emt 0:01:37]} Ne7 {[%emt 0:14:18]} 24. Ne4 {[%emt 0:09:44]} h4 25. Nd2 {[%emt 0:09:25]} Re8 {[%emt 0:13:34]} 26. Nc4 {[%emt 0:03:29]} Qc7 {[%emt 0:07:02]} 27. Kf1 {[%emt 0:02:24]} Bf8 {[%emt 0:04:41]} 28. Re1 {[%emt 0:03:44]} Rd8 {[%emt 0:10:32]} 29. f3 {[%emt 0:06:47]} Nd5 {[%emt 0:01:18]} 30. Bg1 {[%emt 0:01:14]} Kg7 {[%emt 0:02:06]} 31. Qe2 {[%emt 0:01:21]} Re8 {[%emt 0:01:11]} 32. Qd2 {[%emt 0:00:57]} b5 {[%emt 0:01:02]} 33. Rxe8 {[%emt 0:00:40]} Bxe8 {[%emt 0:00:04]} 34. Na3 {[%emt 0:00:24]} Bxa3 {[%emt 0:01:36]} 35. bxa3 {[%emt 0:00:02]} Qe7 {[%emt 0:02:28]} 36. Qc1 {[%emt 0:01:25]} Bg6 {[%emt 0:10:49]} 37. Bxg6 {[%emt 0:02:07]} Kxg6 {[%emt 0:00:02]} 38. Bf2 {[%emt 0:02:30]} Kh6 {[%emt 0:01:25]} 39. Qb2 {[%emt 0:02:58]} Qe8 {[%emt 0:01:37]} 40. Qb3 {[%emt 0:00:30]} Qd7 {[%emt 0:00:18]} 41. axb5 {[%emt 0:01:45]} cxb5 {[%emt 0:00:01]} 42. c4 {[%emt 0:00:08]} bxc4 {[%emt 0:01:06]} 43. Qxc4 {[%emt 0:00:01]} a4 {[%emt 0:00:29]} 44. Qc5 {[%emt 0:01:58]} Kg7 {[%emt 0:00:08]} 45. Kg1 {[%emt 0:00:43]} Kf7 {[%emt 0:00:50]} 46. Kh2 {[%emt 0:00:00]} Ne7 47. Qc4+ Kg7 {[%emt 0:03:08]} 48. Be1 {[%emt 0:01:29]} Nf5 {[%emt 0:00:11]} 49. Bf2 {[%emt 0:01:16]} Ne7 {[%emt 0:02:09]} 50. Kg1 {[%emt 0:00:07]} Nd5 {[%emt 0:00:08]} 51. Kf1 Qb7 {[%emt 0:00:25]} 52. Kg1 {[%emt 0:01:29]} Qb3 {[%emt 0:00:35]} 53. Qc5 {[%emt 0:00:20]} Kf7 {[%emt 0:01:16]} 54. Kh2 Qa2 {[%emt 0:01:44]} 55. Qd6 {[%emt 0:01:09]} Ne7 {[%emt 0:01:04]} 56. Be1 {[%emt 0:00:32]} Qe6 {[%emt 0:00:14]} 57. Qb4 {[%emt 0:00:31]} Nf5 {[%emt 0:00:18]} 58. Bf2 {[%emt 0:00:43]} Qe2 {[%emt 0:01:07]} 59. Bg1 {[%emt 0:00:32]} Qd1 {[%emt 0:03:38]} 60. Qb7+ Kg6 {[%emt 0:00:09]} 61. Qd7 {[%emt 0:00:52]} Qb3 {[%emt 0:00:47]} 62. Qe8+ {[%emt 0:00:12]} Kg7 {[%emt 0:00:49]} 63. Qd7+ {[%emt 0:00:01]} Kg6 {[%emt 0:00:09]} 64. Qe8+ {[%emt 0:00:01]} Kh7 {[%emt 0:00:21]} 65. Qe4 {[%emt 0:01:07]} Kg6 {[%emt 0:01:02]} 66. d5 {[%emt 0:01:00]} Qxa3 {[%emt 0:00:17]} 67. Qe8+ {[%emt 0:00:18]} Kg7 {[%emt 0:00:39]} 68. Qd7+ {[%emt 0:00:03]} Kg6 69. Qe8+ {[%emt 0:00:01]} Kg7 {[%emt 0:00:52]} 70. Qc8 {[%emt 0:00:20]} Ne3 {[%emt 0:01:40]} 71. Qc7+ {[%emt 0:00:37]} Kh6 {[%emt 0:00:43]} 72. Bxe3 {[%emt 0:00:56]} fxe3 {[%emt 0:00:07]} 73. Qd8 {[%emt 0:00:59]} Qc3 {[%emt 0:01:13]} 74. Qh8+ {[%emt 0:00:22]} Kg6 {[%emt 0:00:00]} 75. Qg8+ {[%emt 0:00:11]} 1/2-1/2

[Event "ESP-chT 2nd Division 2019"]
[Site "Linares"]
[Date "2019.08.23"]
[Round "7.22"]
[White "Barbera Estelles, Rosendo"]
[Black "Gavarrete, Nahun"]
[Result "0-1"]
[ECO "B20"]
[WhiteElo "2176"]
[BlackElo "2349"]
[Annotator "ChessBase"]
[PlyCount "118"]
[EventDate "2019.08.19"]
[EventType "team-tourn"]
[EventCountry "ESP"]
[SourceTitle "playchess.com"]
[Source "ChessBase"]
[SourceQuality "1"]
[TimeControl "5400+30"]

1. e4 {[%emt 0:00:00]} c5 {[%emt 0:02:26]} 2. Be2 {[%emt 0:00:00]} Nc6 {[%emt 0:00:08]} 3. f4 {[%emt 0:00:13]} g6 {[%emt 0:00:09]} 4. Nf3 {[%emt 0:00:32]} Bg7 {[%emt 0:00:05]} 5. O-O {[%emt 0:00:20]} e6 {[%emt 0:00:08]} 6. d3 {[%emt 0:00:51]} Nge7 {[%emt 0:00:08]} 7. c3 {[%emt 0:01:29]} O-O {[%emt 0:00:25]} 8. Be3 {[%emt 0:03:41]} d6 {[%emt 0:00:03]} 9. Na3 {[%emt 0:03:03]} b6 {[%emt 0:10:01]} 10. d4 {[%emt 0:07:34]} f5 {[%emt 0:00:11]} 11. e5 {[%emt 0:03:11]} Nd5 {[%emt 0:00:39]} 12. Qd2 {[%emt 0:00:50]} cxd4 {[%emt 0:05:10]} 13. cxd4 {[%emt 0:00:37]} dxe5 {[%emt 0:04:25]} 14. dxe5 {[%emt 0:01:29]} Nxe3 {[%emt 0:04:31]} 15. Qxe3 {[%emt 0:00:11]} Ne7 {[%emt 0:01:05]} 16. Nb5 {[%emt 0:05:23]} Nd5 {[%emt 0:02:01]} 17. Qd2 {[%emt 0:00:13]} Bh6 {[%emt 0:00:27]} 18. g3 {[%emt 0:01:09]} Ba6 {[%emt 0:04:24]} 19. Nfd4 {[%emt 0:03:07]} Re8 {[%emt 0:03:08]} 20. Rfd1 {[%emt 0:01:23]} Bf8 {[%emt 0:01:25]} 21. Nxe6 {[%emt 0:06:23]} Rxe6 {[%emt 0:00:09]} 22. Qxd5 {[%emt 0:00:08]} Qxd5 {[%emt 0:01:14]} 23. Rxd5 {[%emt 0:00:14]} Rc6 {[%emt 0:05:53]} 24. Rad1 {[%emt 0:09:42]} Rc2 {[%emt 0:02:44]} 25. R5d2 {[%emt 0:14:25]} Rxd2 {[%emt 0:13:45]} 26. Rxd2 {[%emt 0:00:07]} Rc8 {[%emt 0:02:52]} 27. Nd6 {[%emt 0:03:16]} Rc1+ {[%emt 0:01:26]} 28. Kf2 {[%emt 0:00:23]} Bxe2 {[%emt 0:03:00]} 29. Kxe2 {[%emt 0:00:20]} Bxd6 {[%emt 0:01:48]} 30. Rxd6 {[%emt 0:12:38]} Kf8 {[%emt 0:00:26]} 31. Rd8+ {[%emt 0:02:42]} Ke7 {[%emt 0:00:08]} 32. Ra8 {[%emt 0:00:13]} Rc2+ {[%emt 0:00:11]} 33. Ke3 {[%emt 0:00:23]} Rxh2 {[%emt 0:00:22]} 34. Rxa7+ {[%emt 0:00:08]} Ke6 {[%emt 0:00:06]} 35. b4 {[%emt 0:00:48]} g5 {[%emt 0:00:22]} 36. Ra6 {[%emt 0:03:18]} gxf4+ {[%emt 0:01:20]} 37. Kxf4 {[%emt 0:02:13]} Rf2+ {[%emt 0:00:29]} 38. Ke3 {[%emt 0:00:09]} Rb2 {[%emt 0:00:44]} 39. Rxb6+ {[%emt 0:00:10]} Kxe5 {[%emt 0:01:23]} 40. Rb5+ {[%emt 0:00:09]} Kd6 {[%emt 0:02:14]} 41. a4 {[%emt 0:00:16]} Kc6 {[%emt 0:00:08]} 42. Rc5+ {[%emt 0:00:49]} Kd6 {[%emt 0:00:26]} 43. Rc4 {[%emt 0:00:10]} Kd5 {[%emt 0:01:02]} 44. Rf4 {[%emt 0:01:08]} Rb3+ {[%emt 0:00:13]} 45. Kf2 {[%emt 0:00:12]} Rb2+ {[%emt 0:00:36]} 46. Kf3 {[%emt 0:00:06]} Rb3+ {[%emt 0:00:23]} 47. Kg2 {[%emt 0:00:06]} Ke5 {[%emt 0:00:17]} 48. Kh3 {[%emt 0:00:38]} Rb2 {[%emt 0:01:32]} 49. a5 {[%emt 0:03:23]} Ra2 {[%emt 0:00:12]} 50. Rc4 {[%emt 0:00:20]} Ra4 {[%emt 0:07:49]} 51. Kh4 {[%emt 0:05:23]} h6 {[%emt 0:00:08]} 52. Rc5+ {[%emt 0:00:59]} Ke4 {[%emt 0:00:52]} 53. Rb5 {[%emt 0:00:36]} Ra1 {[%emt 0:03:09]} 54. Kh5 {[%emt 0:02:15]} Ra3 {[%emt 0:00:03]} 55. Kxh6 {[%emt 0:00:38]} Rxg3 {[%emt 0:00:39]} 56. a6 {[%emt 0:00:26]} Rg8 {[%emt 0:00:28]} 57. a7 {[%emt 0:00:21]} Ra8 {[%emt 0:00:06]} 58. Rb7 {[%emt 0:00:38]} f4 {[%emt 0:01:49]} 59. b5 {[%emt 0:00:46]} Kd4 0-1

[Event "ESP-chT 2nd Division 2019"]
[Site "Linares"]
[Date "2019.08.23"]
[Round "7.23"]
[White "Silva Rodriguez, Fernando"]
[Black "Garcia Amoros, Pablo"]
[Result "1/2-1/2"]
[ECO "B90"]
[WhiteElo "2253"]
[BlackElo "2101"]
[Annotator "ChessBase"]
[PlyCount "59"]
[EventDate "2019.08.19"]
[EventType "team-tourn"]
[EventCountry "ESP"]
[SourceTitle "playchess.com"]
[Source "ChessBase"]
[SourceQuality "1"]
[TimeControl "5400+30"]

1. e4 {[%emt 0:03:03]} c5 {[%emt 0:03:09]} 2. Nf3 {[%emt 0:00:09]} d6 {[%emt 0:00:30]} 3. d4 {[%emt 0:00:07]} cxd4 {[%emt 0:00:10]} 4. Nxd4 {[%emt 0:00:06]} Nf6 {[%emt 0:00:18]} 5. Nc3 {[%emt 0:00:06]} a6 {[%emt 0:00:08]} 6. h3 {[%emt 0:00:09]} e6 {[%emt 0:01:47]} 7. g4 {[%emt 0:00:08]} d5 {[%emt 0:00:27]} 8. exd5 {[%emt 0:00:16]} Nxd5 {[%emt 0:00:08]} 9. Nde2 {[%emt 0:00:05]} Qa5 {[%emt 0:06:31]} 10. Bg2 {[%emt 0:01:43]} Nxc3 {[%emt 0:02:41]} 11. Nxc3 {[%emt 0:01:14]} Be7 {[%emt 0:01:20]} 12. Bd2 {[%emt 0:10:53]} Qe5+ {[%emt 0:02:45]} 13. Qe2 {[%emt 0:00:08]} Qxe2+ {[%emt 0:01:10]} 14. Kxe2 {[%emt 0:00:13]} Nd7 {[%emt 0:04:24]} 15. Be3 {[%emt 0:07:46]} Bc5 {[%emt 0:02:56]} 16. Ne4 {[%emt 0:00:16]} Bxe3 {[%emt 0:09:03]} 17. fxe3 {[%emt 0:00:10]} Ra7 {[%emt 0:05:28]} 18. Rhf1 {[%emt 0:08:20]} Ke7 {[%emt 0:01:22]} 19. Rad1 {[%emt 0:00:49]} b6 {[%emt 0:01:43]} 20. Nd6 {[%emt 0:00:50]} f6 {[%emt 0:01:31]} 21. Be4 {[%emt 0:05:44]} Nc5 {[%emt 0:07:58]} 22. Nxc8+ {[%emt 0:09:31]} Rxc8 {[%emt 0:00:09]} 23. Bxh7 {[%emt 0:00:44]} Rh8 {[%emt 0:00:23]} 24. Bg6 {[%emt 0:00:06]} Rh6 {[%emt 0:01:09]} 25. Bd3 {[%emt 0:00:13]} Rxh3 {[%emt 0:02:54]} 26. Rh1 {[%emt 0:00:11]} Rxh1 {[%emt 0:00:25]} 27. Rxh1 {[%emt 0:00:06]} Nxd3 {[%emt 0:00:15]} 28. cxd3 Rc7 {[%emt 0:00:34]} 29. Kd2 {[%emt 0:01:31]} Kd6 {[%emt 0:00:11]} 30. Rh5 {[%emt 0:01:04] Ke5} 1/2-1/2

[Event "ESP-chT 2nd Division 2019"]
[Site "Linares"]
[Date "2019.08.23"]
[Round "7.24"]
[White "Gonzalez Aguirre, Luis"]
[Black "Nieves Cabanes, Javier"]
[Result "0-1"]
[ECO "A05"]
[WhiteElo "2112"]
[BlackElo "2211"]
[Annotator "ChessBase"]
[PlyCount "62"]
[EventDate "2019.08.19"]
[EventType "team-tourn"]
[EventCountry "ESP"]
[SourceTitle "playchess.com"]
[Source "ChessBase"]
[SourceQuality "1"]
[TimeControl "5400+30"]

1. Nf3 {[%emt 0:00:00]} Nf6 {[%emt 0:02:01]} 2. c4 {[%emt 0:00:12]} e6 {[%emt 0:00:12]} 3. Nc3 {[%emt 0:01:39]} d5 {[%emt 0:01:32]} 4. cxd5 {[%emt 0:03:18]} exd5 {[%emt 0:00:50]} 5. d4 {[%emt 0:00:05]} Bb4 {[%emt 0:01:04]} 6. Bg5 {[%emt 0:02:08]} Nbd7 {[%emt 0:00:32]} 7. Qc2 {[%emt 0:02:26]} c5 {[%emt 0:02:27]} 8. e3 {[%emt 0:00:07]} Qa5 {[%emt 0:00:46]} 9. Bd3 {[%emt 0:02:11]} c4 {[%emt 0:01:06]} 10. Bf5 {[%emt 0:00:07]} O-O {[%emt 0:00:25]} 11. O-O {[%emt 0:04:05]} Re8 {[%emt 0:04:18]} 12. Nd2 {[%emt 0:02:30]} g6 {[%emt 0:00:55]} 13. Bh3 {[%emt 0:01:31]} Bxc3 {[%emt 0:11:34]} 14. bxc3 {[%emt 0:00:03]} Ne4 {[%emt 0:00:13]} 15. Nxe4 {[%emt 0:15:01]} dxe4 {[%emt 0:00:18]} 16. Bxd7 {[%emt 0:07:05]} Bxd7 {[%emt 0:00:45]} 17. Bf4 {[%emt 0:00:18]} Re6 {[%emt 0:07:38]} 18. Rfb1 {[%emt 0:02:33]} Qd5 {[%emt 0:01:15]} 19. Qb2 {[%emt 0:06:46]} b6 {[%emt 0:02:07]} 20. Qa3 {[%emt 0:02:41]} g5 {[%emt 0:05:10]} 21. Be5 {[%emt 0:03:39]} h5 {[%emt 0:01:13]} 22. h3 {[%emt 0:02:32]} h4 {[%emt 0:03:34]} 23. Rb4 {[%emt 0:10:04]} Rg6 {[%emt 0:02:56]} 24. Rab1 {[%emt 0:02:24]} f6 {[%emt 0:11:23]} 25. Bh2 {[%emt 0:00:44]} g4 {[%emt 0:00:14]} 26. hxg4 {[%emt 0:01:05]} Qg5 {[%emt 0:01:33]} 27. Qa6 {[%emt 0:06:06]} Qxg4 {[%emt 0:03:15]} 28. Qxc4+ {[%emt 0:00:48]} Kh8 {[%emt 0:00:37]} 29. Qf1 {[%emt 0:02:17]} Rag8 {[%emt 0:01:28]} 30. Kh1 {[%emt 0:01:29]} Qh5 {[%emt 0:04:48]} 31. d5 {[%emt 0:04:58]} Bh3 {[%emt 0:01:18]} 0-1

[Event "ESP-chT 2nd Division 2019"]
[Site "Linares"]
[Date "2019.08.23"]
[Round "7.25"]
[White "Ortega Sanchis, Angela"]
[Black "Castellet Menchon, Cora"]
[Result "0-1"]
[ECO "B24"]
[WhiteElo "1675"]
[BlackElo "1866"]
[Annotator "NA"]
[PlyCount "44"]
[EventDate "2019.08.19"]
[EventType "team-tourn"]
[EventCountry "ESP"]
[SourceTitle "playchess.com"]
[Source "ChessBase"]
[SourceQuality "1"]
[TimeControl "5400+30"]

1. e4 {[%emt 0:01:57]} c5 {[%emt 0:00:00]} 2. Nc3 {[%emt 0:00:43]} Nc6 {[%emt 0:00:00]} 3. a3 {[%emt 0:00:06]} g6 {[%emt 0:00:55]} 4. Bc4 {[%emt 0:00:07]} Bg7 {[%emt 0:01:56]} 5. d3 {[%emt 0:00:14]} e6 {[%emt 0:03:10]} 6. Ba2 {[%emt 0:01:31]} Nge7 {[%emt 0:01:47]} 7. h4 {[%emt 0:01:05]} h5 {[%emt 0:04:31]} 8. Bg5 {[%emt 0:04:26]} a6 {[%emt 0:06:30]} 9. Nge2 {[%emt 0:04:33]} b5 {[%emt 0:04:20]} 10. Qd2 {[%emt 0:08:12]} Qb6 {[%emt 0:12:33]} 11. Qf4 {[%emt 0:16:42]} f6 {[%emt 0:23:30]} 12. Bxf6 {[%emt 0:03:14]} Rf8 {[%emt 0:00:32]} 13. e5 {[%emt 0:01:07]} Nxe5 {[%emt 0:01:23]} 14. Qxe5 {[%emt 0:03:48]} Bxf6 {[%emt 0:00:35]} 15. Qe3 {[%emt 0:01:55]} Bd4 {[%emt 0:03:08]} 16. Qc1 {[%emt 0:07:28]} Bxf2+ {[%emt 0:00:45]} 17. Kd1 {[%emt 0:00:21]} Bb7 {[%emt 0:07:24]} 18. Ne4 {[%emt 0:03:30]} Bxe4 {[%emt 0:02:44]} 19. dxe4 {[%emt 0:00:04]} c4 {[%emt 0:01:08]} 20. Rf1 {[%emt 0:10:33]} Be3 {[%emt 0:04:00]} 21. Rxf8+ {[%emt 0:00:16]} Kxf8 {[%emt 0:00:02]} 22. Qb1 {[%emt 0:00:30]} Qd6+ {[%emt 0:00:15]} 0-1

[Event "ESP-chT 2nd Division 2019"]
[Site "Linares"]
[Date "2019.08.23"]
[Round "7.26"]
[White "Fernandez Barrera, Victor"]
[Black "Ayats Llobera, Gerard"]
[Result "1/2-1/2"]
[ECO "B42"]
[WhiteElo "2301"]
[BlackElo "2377"]
[Annotator "ChessBase"]
[PlyCount "70"]
[EventDate "2019.08.19"]
[EventType "team-tourn"]
[EventCountry "ESP"]
[SourceTitle "playchess.com"]
[Source "ChessBase"]
[SourceQuality "1"]
[TimeControl "5400+30"]

1. e4 {[%emt 0:00:00]} c5 {[%emt 0:01:14]} 2. Nf3 {[%emt 0:00:00]} e6 {[%emt 0:00:02]} 3. d4 {[%emt 0:00:00]} cxd4 {[%emt 0:00:02]} 4. Nxd4 {[%emt 0:00:00]} a6 {[%emt 0:00:02]} 5. Bd3 {[%emt 0:00:42]} Qc7 {[%emt 0:01:48]} 6. O-O {[%emt 0:00:58]} Nf6 {[%emt 0:01:42]} 7. Qe2 {[%emt 0:00:42]} d6 {[%emt 0:03:14]} 8. Kh1 {[%emt 0:02:21]} Nc6 {[%emt 0:05:45]} 9. Nxc6 {[%emt 0:01:42]} Qxc6 {[%emt 0:09:14]} 10. f4 {[%emt 0:00:31]} Nd7 {[%emt 0:01:31]} 11. c4 {[%emt 0:05:58]} Be7 {[%emt 0:03:13]} 12. e5 {[%emt 0:02:16]} O-O {[%emt 0:08:53]} 13. Nc3 {[%emt 0:01:31]} Qc7 {[%emt 0:09:37]} 14. exd6 {[%emt 0:02:12]} Qxd6 {[%emt 0:00:38]} 15. Ne4 {[%emt 0:00:57]} Qc6 {[%emt 0:12:46]} 16. b3 {[%emt 0:02:27]} f5 {[%emt 0:14:10]} 17. Ng5 {[%emt 0:03:21]} Bxg5 {[%emt 0:05:26]} 18. fxg5 {[%emt 0:01:08]} b6 {[%emt 0:00:02]} 19. Ba3 {[%emt 0:07:42]} Nc5 {[%emt 0:05:14]} 20. Bc2 {[%emt 0:01:11]} a5 {[%emt 0:10:27]} 21. Rae1 {[%emt 0:01:43]} Rf7 {[%emt 0:00:21]} 22. Qf3 {[%emt 0:06:55]} Qxf3 {[%emt 0:00:30]} 23. gxf3 {[%emt 0:01:08]} Rd7 {[%emt 0:00:56]} 24. Rd1 {[%emt 0:05:35]} Kf7 {[%emt 0:00:02]} 25. Rfe1 {[%emt 0:01:52]} Raa7 {[%emt 0:02:00]} 26. Kg2 {[%emt 0:02:37]} Rxd1 {[%emt 0:02:53]} 27. Rxd1 {[%emt 0:00:06]} Rd7 {[%emt 0:01:07]} 28. Rxd7+ {[%emt 0:03:07]} Bxd7 {[%emt 0:00:01]} 29. Bb2 {[%emt 0:00:15]} h6 {[%emt 0:00:43]} 30. gxh6 {[%emt 0:00:57]} gxh6 {[%emt 0:00:01]} 31. Bd4 {[%emt 0:02:08]} Bc6 {[%emt 0:00:10]} 32. Kg3 {[%emt 0:01:38]} Nd7 {[%emt 0:00:18]} 33. Kf4 {[%emt 0:02:40]} Kg6 {[%emt 0:00:01]} 34. a3 {[%emt 0:01:55]} Kh5 {[%emt 0:00:35]} 35. Bg7 {[%emt 0:09:21]} Kg6 {[%emt 0:00:25] Ke4} 1/2-1/2

[Event "ESP-chT 2nd Division 2019"]
[Site "Linares"]
[Date "2019.08.23"]
[Round "7.27"]
[White "Martin Gonzalez, Angel"]
[Black "Buendia Pinar, Alvaro"]
[Result "1/2-1/2"]
[ECO "B14"]
[WhiteElo "2334"]
[BlackElo "2277"]
[Annotator "ChessBase"]
[PlyCount "209"]
[EventDate "2019.08.19"]
[EventType "team-tourn"]
[EventCountry "ESP"]
[SourceTitle "playchess.com"]
[Source "ChessBase"]
[SourceQuality "1"]
[TimeControl "5400+30"]

1. e4 {[%emt 0:00:00]} c6 {[%emt 0:05:19]} 2. d4 {[%emt 0:00:00]} d5 {[%emt 0:01:02]} 3. exd5 {[%emt 0:00:00]} cxd5 {[%emt 0:00:05]} 4. c4 {[%emt 0:00:00]} Nf6 {[%emt 0:00:04]} 5. Nc3 {[%emt 0:00:08]} g6 {[%emt 0:00:08]} 6. Qb3 {[%emt 0:00:29]} Bg7 {[%emt 0:04:44]} 7. cxd5 {[%emt 0:00:25]} O-O {[%emt 0:00:08]} 8. Be2 {[%emt 0:00:03]} Nbd7 {[%emt 0:01:37]} 9. Bf3 {[%emt 0:00:07]} Nb6 {[%emt 0:00:38]} 10. Bg5 {[%emt 0:03:37]} h6 {[%emt 0:01:07]} 11. Bxf6 {[%emt 0:00:18]} Bxf6 {[%emt 0:00:06]} 12. Nge2 {[%emt 0:00:07]} Bf5 {[%emt 0:03:39]} 13. Rd1 {[%emt 0:03:30]} Rc8 {[%emt 0:09:47]} 14. O-O {[%emt 0:02:10]} Nc4 {[%emt 0:01:52]} 15. Ng3 {[%emt 0:03:24]} Na5 {[%emt 0:05:43]} 16. Qb5 {[%emt 0:04:43]} Rc4 {[%emt 0:11:47]} 17. d6 {[%emt 0:11:15]} a6 {[%emt 0:12:22]} 18. dxe7 {[%emt 0:00:40]} Bxe7 {[%emt 0:03:55]} 19. Qd5 {[%emt 0:10:07]} Be6 {[%emt 0:01:26]} 20. Qxd8 {[%emt 0:00:15]} Rxd8 {[%emt 0:00:11]} 21. d5 {[%emt 0:00:08]} Bc8 {[%emt 0:03:26]} 22. Be2 {[%emt 0:07:45]} Rb4 {[%emt 0:02:38]} 23. b3 {[%emt 0:00:10]} Kg7 {[%emt 0:00:50]} 24. Rd3 {[%emt 0:06:30]} h5 {[%emt 0:01:17]} 25. Rfd1 {[%emt 0:02:58]} Bd6 {[%emt 0:01:47]} 26. Bf3 {[%emt 0:05:29]} b5 {[%emt 0:02:31]} 27. Nce4 {[%emt 0:01:42]} Be5 {[%emt 0:01:40]} 28. Nc5 {[%emt 0:03:41]} Nb7 {[%emt 0:06:37]} 29. Nxa6 {[%emt 0:03:45]} Rh4 {[%emt 0:00:20]} 30. Rc1 {[%emt 0:01:48]} Bd7 {[%emt 0:03:25]} 31. b4 {[%emt 0:05:22]} Rc4 {[%emt 0:00:31]} 32. Rdd1 {[%emt 0:00:29]} Rdc8 {[%emt 0:00:55]} 33. Ne2 {[%emt 0:02:32]} Bd6 {[%emt 0:00:30]} 34. Rxc4 {[%emt 0:04:29]} bxc4 {[%emt 0:00:35]} 35. Nc3 {[%emt 0:00:06]} Ra8 {[%emt 0:00:12]} 36. Nc7 {[%emt 0:03:03]} Ra3 {[%emt 0:01:43]} 37. N7b5 {[%emt 0:00:01]} Bxb5 {[%emt 0:00:11]} 38. Nxb5 {[%emt 0:00:02]} Rxa2 {[%emt 0:00:07]} 39. Nxd6 {[%emt 0:00:21]} Nxd6 {[%emt 0:00:03]} 40. Rb1 {[%emt 0:04:19]} Kf6 {[%emt 0:02:04]} 41. Kf1 {[%emt 0:04:28]} Ke5 {[%emt 0:01:12]} 42. b5 {[%emt 0:00:45]} c3 {[%emt 0:00:12]} 43. b6 {[%emt 0:01:20]} c2 {[%emt 0:00:21]} 44. Rc1 {[%emt 0:00:13]} Kd4 {[%emt 0:00:13]} 45. Ke1 {[%emt 0:02:06]} Kc3 {[%emt 0:03:18]} 46. Bd1 {[%emt 0:00:14]} Kb3 {[%emt 0:01:20]} 47. Be2 {[%emt 0:00:26]} Kb2 {[%emt 0:00:16]} 48. b7 {[%emt 0:01:22]} Nxb7 {[%emt 0:00:49]} 49. Kd2 {[%emt 0:00:00]} Kb3 {[%emt 0:00:35]} 50. Bd3 {[%emt 0:00:01]} Nc5 {[%emt 0:01:21]} 51. Rxc2 {[%emt 0:00:22]} Rxc2+ {[%emt 0:00:39]} 52. Bxc2+ {[%emt 0:00:02]} Kc4 {[%emt 0:00:07]} 53. d6 {[%emt 0:01:45]} Kd5 {[%emt 0:00:07]} 54. d7 {[%emt 0:00:14]} Nxd7 {[%emt 0:00:04]} 55. Bb3+ {[%emt 0:00:06]} Kd6 {[%emt 0:00:06]} 56. Bxf7 {[%emt 0:00:05]} Ne5 {[%emt 0:00:05]} 57. Bb3 {[%emt 0:01:39]} Ke7 {[%emt 0:00:26]} 58. h4 {[%emt 0:00:59]} Kf6 {[%emt 0:00:46]} 59. g3 {[%emt 0:01:17]} Nf3+ {[%emt 0:02:13]} 60. Ke3 {[%emt 0:00:09]} Ne5 {[%emt 0:00:06]} 61. Kf4 {[%emt 0:00:57]} Nd3+ {[%emt 0:00:18]} 62. Ke3 {[%emt 0:00:02]} Ne5 {[%emt 0:00:07]} 63. Ke4 {[%emt 0:00:07]} Ng4 {[%emt 0:00:20]} 64. f3 {[%emt 0:00:12]} Nh6 {[%emt 0:00:12]} 65. Kf4 {[%emt 0:00:34]} Nf5 {[%emt 0:00:34]} 66. Bc2 {[%emt 0:00:02]} Nd4 {[%emt 0:00:12]} 67. Bd3 {[%emt 0:00:01]} Ne6+ {[%emt 0:00:13]} 68. Ke3 {[%emt 0:00:36]} Ng7 {[%emt 0:01:44]} 69. Bb5 {[%emt 0:00:46]} Nf5+ {[%emt 0:00:42]} 70. Kf4 {[%emt 0:00:02]} Nd6 {[%emt 0:00:24]} 71. Bd7 {[%emt 0:00:02]} Nf7 {[%emt 0:00:19]} 72. Be8 {[%emt 0:01:21]} Nd6 {[%emt 0:00:16]} 73. Bc6 {[%emt 0:00:45]} Nf7 {[%emt 0:00:12]} 74. Bd5 {[%emt 0:00:14]} Nd6 {[%emt 0:00:15]} 75. Bc6 {[%emt 0:04:25]} Nf7 {[%emt 0:00:45]} 76. Bd7 {[%emt 0:00:10]} Ne5 {[%emt 0:01:11]} 77. Bh3 {[%emt 0:00:19]} Nf7 {[%emt 0:00:18]} 78. Bf1 {[%emt 0:00:57]} Ne5 {[%emt 0:01:17]} 79. Be2 {[%emt 0:00:07]} Nf7 {[%emt 0:00:09]} 80. Bc4 {[%emt 0:00:19]} Nd6 {[%emt 0:01:32]} 81. Bd5 {[%emt 0:00:08]} Nf5 {[%emt 0:00:18]} 82. Be4 {[%emt 0:01:54]} Nd4 {[%emt 0:00:56]} 83. Ke3 {[%emt 0:00:18]} Ne6 {[%emt 0:00:35]} 84. f4 {[%emt 0:01:14]} Ng7 {[%emt 0:00:38]} 85. Bb7 {[%emt 0:00:50]} Nf5+ {[%emt 0:00:09]} 86. Kf3 {[%emt 0:00:02]} Nd4+ {[%emt 0:00:09]} 87. Ke4 {[%emt 0:00:05]} Nf5 {[%emt 0:00:17]} 88. Kf3 {[%emt 0:00:08]} Nd4+ {[%emt 0:00:07]} 89. Kf2 {[%emt 0:00:00]} Nf5 {[%emt 0:00:20]} 90. Bc8 {[%emt 0:00:02]} Nd6 {[%emt 0:00:26]} 91. Bd7 {[%emt 0:00:06]} Ne4+ {[%emt 0:00:22]} 92. Kf3 {[%emt 0:00:03]} Nd6 {[%emt 0:00:07]} 93. Bh3 {[%emt 0:00:14]} Nf7 {[%emt 0:00:56]} 94. Ke4 {[%emt 0:00:06]} Nd6+ {[%emt 0:00:19]} 95. Ke3 {[%emt 0:01:48]} Nf7 {[%emt 0:00:13]} 96. Bg2 {[%emt 0:01:35]} Nd6 {[%emt 0:00:22]} 97. Be4 {[%emt 0:00:19]} Nf7 {[%emt 0:00:28]} 98. Bc2 {[%emt 0:00:27]} Nd6 {[%emt 0:00:11]} 99. Bd3 {[%emt 0:00:03]} Nf7 {[%emt 0:00:06]} 100. f5 {[%emt 0:00:56]} gxf5 {[%emt 0:00:21]} 101. Kf4 {[%emt 0:00:01]} Nd6 {[%emt 0:01:59]} 102. Bc2 {[%emt 0:00:48]} Ne4 {[%emt 0:00:12]} 103. Bxe4 {[%emt 0:00:15]} fxe4 {[%emt 0:00:05]} 104. Kxe4 {[%emt 0:00:12]} Ke6 {[%emt 0:00:04]} 105. Kf4 {[%emt 0:01:03] Ke5+ Ke4+} 1/2-1/2